[Event "Late-Titled-Tuesday-Blitz-September-05-2023"]
[Site "Chess.com"]
[Date "2023.09.05"]
[Round "11"]
[White "emeli_chess"]
[Black "ChEsper99"]
[Result "0-1"]
[WhiteElo "2364"]
[BlackElo "2206"]
[TimeControl "180+1"]
[EndTime "16:05:15 PDT"]
[Termination "ChEsper99 won by resignation"]

1. d4 {[%clk 0:03:00.9]} 1... d5 {[%clk 0:02:57.7]} 2. c4 {[%clk 0:02:58.6]}
2... c6 {[%clk 0:02:57.4]} 3. Nc3 {[%clk 0:02:58.5]} 3... Nf6 {[%clk 0:02:57.3]}
4. e3 {[%clk 0:02:58.5]} 4... Bf5 {[%clk 0:02:55.7]} 5. Nf3 {[%clk 0:02:58.4]}
5... e6 {[%clk 0:02:55.3]} 6. Nh4 {[%clk 0:02:58.6]} 6... Be4 {[%clk 0:02:55.1]}
7. f3 {[%clk 0:02:57.8]} 7... Bg6 {[%clk 0:02:55.7]} 8. Bd2 {[%clk 0:02:57]}
8... Be7 {[%clk 0:02:45.9]} 9. Nxg6 {[%clk 0:02:55.1]} 9... hxg6 {[%clk
0:02:45.3]} 10. Qb3 {[%clk 0:02:54.2]} 10... Qc7 {[%clk 0:02:43.1]} 11. O-O-O
{[%clk 0:02:52.3]} 11... dxc4 {[%clk 0:02:42.5]} 12. Bxc4 {[%clk 0:02:48.7]}
12... b5 {[%clk 0:02:41]} 13. Bxe6 {[%clk 0:02:32.1]} 13... fxe6 {[%clk
0:02:37.2]} 14. Qxe6 {[%clk 0:02:32.3]} 14... Qd6 {[%clk 0:02:26.7]} 15. Qxd6
{[%clk 0:02:21.8]} 15... Bxd6 {[%clk 0:02:26.6]} 16. h3 {[%clk 0:02:22.2]} 16...
Nbd7 {[%clk 0:02:17.5]} 17. e4 {[%clk 0:02:22.5]} 17... Bb4 {[%clk 0:02:02.5]}
18. Bf4 {[%clk 0:02:09.9]} 18... Bxc3 {[%clk 0:01:59.6]} 19. bxc3 {[%clk
0:02:09.9]} 19... O-O {[%clk 0:01:52.3]} 20. Bd6 {[%clk 0:02:09.2]} 20... Rfe8
{[%clk 0:01:49]} 21. Kc2 {[%clk 0:02:05.6]} 21... Rac8 {[%clk 0:01:38.6]} 22. h4
{[%clk 0:02:00.1]} 22... Re6 {[%clk 0:01:24.9]} 23. e5 {[%clk 0:01:59.7]} 23...
Nd5 {[%clk 0:01:19.4]} 24. Kd3 {[%clk 0:01:50.8]} 24... Nf4+ {[%clk 0:01:07.3]}
25. Ke4 {[%clk 0:01:50]} 25... Ne2 {[%clk 0:00:53.2]} 26. Kd3 {[%clk 0:01:43]}
26... Ng3 {[%clk 0:00:48.8]} 27. Rh3 {[%clk 0:01:34]} 27... Nf5 {[%clk 0:00:49]}
28. Ba3 {[%clk 0:01:32]} 28... c5 {[%clk 0:00:34.1]} 29. g4 {[%clk 0:01:31.5]}
29... Ne7 {[%clk 0:00:30]} 30. Ke4 {[%clk 0:01:29]} 30... Nf6+ {[%clk
0:00:20.6]} 31. Kf4 {[%clk 0:01:24.6]} 31... Nfd5+ {[%clk 0:00:18.4]} 32. Kg3
{[%clk 0:01:24.8]} 32... Nxc3 {[%clk 0:00:18.3]} 33. Rd3 {[%clk 0:01:17.4]}
33... Ne2+ {[%clk 0:00:18.5]} 34. Kf2 {[%clk 0:01:15.8]} 34... Nf4 {[%clk
0:00:16.7]} 35. Ke3 {[%clk 0:01:12.7]} 35... Nxh3 {[%clk 0:00:16.9]} 36. f4
{[%clk 0:01:13.1]} 36... cxd4+ {[%clk 0:00:17.2]} 37. Rxd4 {[%clk 0:01:13.4]}
37... Nc6 {[%clk 0:00:16.4]} 38. Rd7 {[%clk 0:01:11.3]} 38... b4 {[%clk
0:00:12.5]} 39. Bb2 {[%clk 0:01:10.7]} 39... Re7 {[%clk 0:00:12.7]} 40. Rd6
{[%clk 0:01:09.7]} 40... Na5 {[%clk 0:00:11.3]} 41. Rxg6 {[%clk 0:01:01.9]}
41... Nc4+ {[%clk 0:00:11.6]} 42. Ke4 {[%clk 0:01:02.2]} 42... Nxb2 {[%clk
0:00:12.1]} 43. f5 {[%clk 0:01:02.6]} 43... Rc4+ {[%clk 0:00:11.8]} 44. Kd5
{[%clk 0:01:02.5]} 44... Rd7+ {[%clk 0:00:11.1]} 45. Rd6 {[%clk 0:01:01.9]}
45... Rxd6+ {[%clk 0:00:11.3]} 46. Kxd6 {[%clk 0:01:02]} 46... Nd3 {[%clk
0:00:09.8]} 47. e6 {[%clk 0:01:02.1]} 47... Re4 {[%clk 0:00:09.4]} 48. g5 {[%clk
0:01:01.5]} 48... Nhf4 {[%clk 0:00:05.7]} 49. Kd7 {[%clk 0:00:58.6]} 49... Kf8
{[%clk 0:00:05.3]} 50. Kd8 {[%clk 0:00:58.6]} 50... Nc5 {[%clk 0:00:04.4]} 51.
Kc7 {[%clk 0:00:57.1]} 51... Ncxe6+ {[%clk 0:00:04.7]} 52. fxe6 {[%clk
0:00:56.4]} 52... Nxe6+ {[%clk 0:00:05.1]} 53. Kd6 {[%clk 0:00:57.3]} 53... Nxg5
{[%clk 0:00:05.6]} 54. hxg5 {[%clk 0:00:57.1]} 54... Rg4 {[%clk 0:00:06.3]} 55.
Kc5 {[%clk 0:00:57.1]} 55... Rxg5+ {[%clk 0:00:06.6]} 56. Kxb4 {[%clk
0:00:57.5]} 56... Rf5 {[%clk 0:00:06.7]} 57. a4 {[%clk 0:00:57.6]} 57... g5
{[%clk 0:00:06.9]} 58. a5 {[%clk 0:00:57.9]} 58... g4 {[%clk 0:00:07.2]} 59. a6
{[%clk 0:00:58.6]} 59... g3 {[%clk 0:00:07.8]} 0-1

[Event "Late-Titled-Tuesday-Blitz-September-05-2023"]
[Site "Chess.com"]
[Date "2023.09.05"]
[Round "11"]
[White "Djager97"]
[Black "Leo_C"]
[Result "1/2-1/2"]
[WhiteElo "2535"]
[BlackElo "2645"]
[TimeControl "180+1"]
[EndTime "16:05:26 PDT"]
[Termination "Game drawn by repetition"]

1. e4 {[%clk 0:03:00.9]} 1... c5 {[%clk 0:02:58.3]} 2. Nf3 {[%clk 0:03:00.4]}
2... e6 {[%clk 0:02:58.8]} 3. g3 {[%clk 0:02:59.4]} 3... Nc6 {[%clk 0:02:58.5]}
4. Bg2 {[%clk 0:02:59.3]} 4... Nf6 {[%clk 0:02:53]} 5. Nc3 {[%clk 0:02:58.8]}
5... d5 {[%clk 0:02:48.4]} 6. exd5 {[%clk 0:02:59.7]} 6... exd5 {[%clk
0:02:48.6]} 7. d4 {[%clk 0:03:00.2]} 7... Bg4 {[%clk 0:02:45.2]} 8. O-O {[%clk
0:02:43.3]} 8... Nxd4 {[%clk 0:02:37]} 9. Qe1+ {[%clk 0:02:37.5]} 9... Be7
{[%clk 0:02:18.2]} 10. Nxd4 {[%clk 0:02:13]} 10... cxd4 {[%clk 0:02:19.1]} 11.
Ne2 {[%clk 0:02:01]} 11... Qb6 {[%clk 0:01:59.6]} 12. Qd2 {[%clk 0:01:52.5]}
12... Ne4 {[%clk 0:01:46.5]} 13. Qd3 {[%clk 0:01:45.9]} 13... Nc5 {[%clk
0:01:27.3]} 14. Qxd4 {[%clk 0:01:32.7]} 14... Bxe2 {[%clk 0:01:26.3]} 15. Re1
{[%clk 0:01:32.2]} 15... Bc4 {[%clk 0:00:45.6]} 16. Qxg7 {[%clk 0:01:16.3]}
16... Rf8 {[%clk 0:00:45.2]} 17. b3 {[%clk 0:00:36.3]} 17... Ne6 {[%clk
0:00:43.9]} 18. Rxe6 {[%clk 0:00:29.4]} 18... Qxe6 {[%clk 0:00:42.7]} 19. bxc4
{[%clk 0:00:29.9]} 19... Bf6 {[%clk 0:00:40.3]} 20. Qxh7 {[%clk 0:00:24.1]}
20... Qe1+ {[%clk 0:00:37.1]} 21. Bf1 {[%clk 0:00:23.8]} 21... Bxa1 {[%clk
0:00:37.2]} 22. Bg5 {[%clk 0:00:13.7]} 22... Qe5 {[%clk 0:00:20.5]} 23. Bf4
{[%clk 0:00:10.6]} 23... Qe6 {[%clk 0:00:20.1]} 24. cxd5 {[%clk 0:00:09.2]}
24... Qxd5 {[%clk 0:00:20.3]} 25. c4 {[%clk 0:00:03.3]} 25... Qe6 {[%clk
0:00:19.9]} 26. Qh4 {[%clk 0:00:02]} 26... Bf6 {[%clk 0:00:18.4]} 27. Qh5 {[%clk
0:00:01.7]} 27... O-O-O {[%clk 0:00:17.9]} 28. Qc5+ {[%clk 0:00:02.1]} 28... Qc6
{[%clk 0:00:17.8]} 29. Qxa7 {[%clk 0:00:03]} 29... Kd7 {[%clk 0:00:06.9]} 30.
Bh3+ {[%clk 0:00:02.7]} 30... Ke8 {[%clk 0:00:06.5]} 31. Qe3+ {[%clk 0:00:02.3]}
31... Be7 {[%clk 0:00:06.5]} 32. Bg5 {[%clk 0:00:02.5]} 32... f6 {[%clk
0:00:06.1]} 33. Bf4 {[%clk 0:00:02.6]} 33... Rd1+ {[%clk 0:00:05.5]} 34. Bf1
{[%clk 0:00:02.3]} 34... Rxf1+ {[%clk 0:00:05.8]} 35. Kxf1 {[%clk 0:00:02.3]}
35... Qxc4+ {[%clk 0:00:06.2]} 36. Kg1 {[%clk 0:00:02.7]} 36... Kf7 {[%clk
0:00:06.3]} 37. Qf3 {[%clk 0:00:02.5]} 37... Rd8 {[%clk 0:00:04.8]} 38. Qh5+
{[%clk 0:00:02.3]} 38... Kg8 {[%clk 0:00:05.1]} 39. Qg6+ {[%clk 0:00:02.2]}
39... Kh8 {[%clk 0:00:04.7]} 40. Qh6+ {[%clk 0:00:02.6]} 40... Kg8 {[%clk
0:00:05.2]} 41. Qg6+ {[%clk 0:00:03]} 41... Kh8 {[%clk 0:00:05.7]} 42. Qh6+
{[%clk 0:00:03.1]} 42... Kg8 {[%clk 0:00:06.3]} 43. Qg6+ {[%clk 0:00:03.5]}
1/2-1/2

[Event "Late-Titled-Tuesday-Blitz-September-05-2023"]
[Site "Chess.com"]
[Date "2023.09.05"]
[Round "11"]
[White "Mesa_1"]
[Black "SaqoChess_Twitch"]
[Result "0-1"]
[WhiteElo "2624"]
[BlackElo "2752"]
[TimeControl "180+1"]
[EndTime "16:05:27 PDT"]
[Termination "SaqoChess_Twitch won by resignation"]

1. e4 {[%clk 0:02:59.9]} 1... c5 {[%clk 0:02:59.9]} 2. Nf3 {[%clk 0:02:59.4]}
2... d6 {[%clk 0:03:00.2]} 3. d4 {[%clk 0:02:59.4]} 3... cxd4 {[%clk 0:03:01.1]}
4. Nxd4 {[%clk 0:03:00]} 4... Nf6 {[%clk 0:03:02]} 5. Nc3 {[%clk 0:03:00.4]}
5... g6 {[%clk 0:03:02.6]} 6. Be3 {[%clk 0:03:00.1]} 6... Bg7 {[%clk 0:03:03.2]}
7. f3 {[%clk 0:03:00.9]} 7... O-O {[%clk 0:03:03.8]} 8. Qd2 {[%clk 0:03:01.6]}
8... Nc6 {[%clk 0:03:04.3]} 9. O-O-O {[%clk 0:03:02.1]} 9... d5 {[%clk
0:03:04.8]} 10. exd5 {[%clk 0:03:02.4]} 10... Nxd5 {[%clk 0:03:05.7]} 11. Nxc6
{[%clk 0:03:03.1]} 11... bxc6 {[%clk 0:03:06.6]} 12. Bd4 {[%clk 0:03:03.7]}
12... Nxc3 {[%clk 0:03:07]} 13. Qxc3 {[%clk 0:02:51]} 13... Bh6+ {[%clk
0:03:06.4]} 14. Be3 {[%clk 0:02:48.5]} 14... Bxe3+ {[%clk 0:03:05.6]} 15. Qxe3
{[%clk 0:02:49.4]} 15... Qb6 {[%clk 0:03:06.1]} 16. Qc3 {[%clk 0:02:50.1]} 16...
Be6 {[%clk 0:03:05.3]} 17. h4 {[%clk 0:02:50.8]} 17... Rfd8 {[%clk 0:03:03.2]}
18. Bd3 {[%clk 0:02:46.6]} 18... Qd4 {[%clk 0:02:59.1]} 19. Qxd4 {[%clk
0:02:46.2]} 19... Rxd4 {[%clk 0:03:00]} 20. h5 {[%clk 0:02:46.9]} 20... Rad8
{[%clk 0:02:58.8]} 21. hxg6 {[%clk 0:02:45.2]} 21... hxg6 {[%clk 0:02:58.6]} 22.
Be4 {[%clk 0:02:42.4]} 22... c5 {[%clk 0:02:54.6]} 23. b3 {[%clk 0:02:19.5]}
23... a5 {[%clk 0:02:51.7]} 24. Rxd4 {[%clk 0:02:10.2]} 24... cxd4 {[%clk
0:02:40.7]} 25. Re1 {[%clk 0:02:08.4]} 25... Kg7 {[%clk 0:02:39.7]} 26. Bd3
{[%clk 0:02:08]} 26... Kf6 {[%clk 0:02:36.8]} 27. f4 {[%clk 0:02:04.6]} 27...
Bd5 {[%clk 0:02:36.3]} 28. Re5 {[%clk 0:01:48.5]} 28... e6 {[%clk 0:02:32.4]}
29. Re2 {[%clk 0:01:25.3]} 29... Ra8 {[%clk 0:02:26.1]} 30. a4 {[%clk
0:01:24.9]} 30... Rc8 {[%clk 0:02:24.5]} 31. Kd2 {[%clk 0:01:22.8]} 31... Ke7
{[%clk 0:02:22.2]} 32. Be4 {[%clk 0:01:11.4]} 32... Kd6 {[%clk 0:02:22.4]} 33.
Bxd5 {[%clk 0:01:11.3]} 33... exd5 {[%clk 0:02:18.6]} 34. Rf2 {[%clk 0:01:02]}
34... Rc3 {[%clk 0:02:17.2]} 35. Rf3 {[%clk 0:00:55.1]} 35... Rc8 {[%clk
0:01:46.8]} 36. f5 {[%clk 0:00:50.7]} 36... g5 {[%clk 0:01:46.6]} 37. f6 {[%clk
0:00:48.2]} 37... Ke5 {[%clk 0:01:46]} 38. g4 {[%clk 0:00:43.6]} 38... Rc6
{[%clk 0:01:44.1]} 39. Rf5+ {[%clk 0:00:43.3]} 39... Ke4 {[%clk 0:01:43.9]} 40.
Rxg5 {[%clk 0:00:34.2]} 40... Rxf6 {[%clk 0:01:43.4]} 41. Ke2 {[%clk 0:00:32.5]}
41... Rh6 {[%clk 0:01:33.1]} 42. Rh5 {[%clk 0:00:32.3]} 42... Rg6 {[%clk
0:01:33.6]} 43. Rh4 {[%clk 0:00:25.9]} 43... Rg5 {[%clk 0:01:30.7]} 44. Rh7
{[%clk 0:00:21.1]} 44... Rxg4 {[%clk 0:01:30]} 45. Rxf7 {[%clk 0:00:21.6]} 45...
Rg2+ {[%clk 0:01:30.4]} 46. Kd1 {[%clk 0:00:17.1]} 46... d3 {[%clk 0:01:28.3]}
47. cxd3+ {[%clk 0:00:14]} 47... Kxd3 {[%clk 0:01:29.2]} 48. Rf3+ {[%clk
0:00:14.5]} 48... Kd4 {[%clk 0:01:29.6]} 49. Kc1 {[%clk 0:00:14.9]} 49... Kc5
{[%clk 0:01:23.9]} 50. Rd3 {[%clk 0:00:12.9]} 50... d4 {[%clk 0:01:23.5]} 51.
Kd1 {[%clk 0:00:13.5]} 51... Rf2 {[%clk 0:01:22.1]} 52. Kc1 {[%clk 0:00:13.7]}
52... Kd5 {[%clk 0:01:17.9]} 53. Kd1 {[%clk 0:00:14.1]} 53... Ke4 {[%clk
0:01:18.1]} 54. Rh3 {[%clk 0:00:13.3]} 54... d3 {[%clk 0:01:18]} 55. Rh8 {[%clk
0:00:13.4]} 55... Kd4 {[%clk 0:01:17.6]} 56. Rc8 {[%clk 0:00:12.9]} 56... Rb2
{[%clk 0:01:16.6]} 57. Rc4+ {[%clk 0:00:07.9]} 57... Ke3 {[%clk 0:01:15.6]} 58.
Kc1 {[%clk 0:00:04.2]} 58... Rh2 {[%clk 0:01:15.9]} 59. Rc8 {[%clk 0:00:03.9]}
59... Rh1+ {[%clk 0:01:13.7]} 60. Kb2 {[%clk 0:00:04.2]} 60... d2 {[%clk
0:01:14.3]} 61. Re8+ {[%clk 0:00:04.6]} 61... Kf4 {[%clk 0:01:14.2]} 62. Rd8
{[%clk 0:00:02.5]} 62... d1=Q {[%clk 0:01:14]} 63. Rxd1 {[%clk 0:00:03.1]} 63...
Rxd1 {[%clk 0:01:14.8]} 64. Kc3 {[%clk 0:00:04]} 64... Ke5 {[%clk 0:01:14.1]}
65. Kc4 {[%clk 0:00:04.1]} 65... Rd5 {[%clk 0:01:13.5]} 66. b4 {[%clk
0:00:04.4]} 66... axb4 {[%clk 0:01:14.4]} 67. Kxb4 {[%clk 0:00:05.3]} 67... Kd6
{[%clk 0:01:14.9]} 0-1

[Event "Late-Titled-Tuesday-Blitz-September-05-2023"]
[Site "Chess.com"]
[Date "2023.09.05"]
[Round "11"]
[White "JackRodgers"]
[Black "Eloist"]
[Result "1-0"]
[WhiteElo "2599"]
[BlackElo "2470"]
[TimeControl "180+1"]
[EndTime "16:05:27 PDT"]
[Termination "JackRodgers won on time"]

1. d4 {[%clk 0:03:00.9]} 1... e6 {[%clk 0:02:58.4]} 2. c4 {[%clk 0:02:58.3]}
2... Nf6 {[%clk 0:02:58]} 3. Nf3 {[%clk 0:02:57.1]} 3... b6 {[%clk 0:02:57.3]}
4. g3 {[%clk 0:02:56.5]} 4... Bb7 {[%clk 0:02:56.7]} 5. Bg2 {[%clk 0:02:57]}
5... Be7 {[%clk 0:02:56.8]} 6. O-O {[%clk 0:02:57.2]} 6... O-O {[%clk 0:02:57]}
7. Nc3 {[%clk 0:02:55.4]} 7... Ne4 {[%clk 0:02:56.6]} 8. Qc2 {[%clk 0:02:52.4]}
8... Nxc3 {[%clk 0:02:54.9]} 9. Qxc3 {[%clk 0:02:53.3]} 9... f5 {[%clk
0:02:53.8]} 10. b3 {[%clk 0:02:47.3]} 10... Bf6 {[%clk 0:02:52]} 11. Bb2 {[%clk
0:02:47.7]} 11... d6 {[%clk 0:02:49]} 12. Rac1 {[%clk 0:02:46]} 12... Nd7 {[%clk
0:02:42.4]} 13. Rfe1 {[%clk 0:02:46]} 13... Be4 {[%clk 0:02:33.9]} 14. e3 {[%clk
0:02:42.7]} 14... c5 {[%clk 0:02:32.6]} 15. Qd2 {[%clk 0:02:42.5]} 15... Qe7
{[%clk 0:02:30.4]} 16. Red1 {[%clk 0:02:26.9]} 16... Rad8 {[%clk 0:02:24]} 17.
dxc5 {[%clk 0:02:13.4]} 17... Nxc5 {[%clk 0:02:08.3]} 18. Bxf6 {[%clk
0:02:08.3]} 18... Qxf6 {[%clk 0:02:05.7]} 19. Ne1 {[%clk 0:02:06.2]} 19... Bxg2
{[%clk 0:02:01.9]} 20. Kxg2 {[%clk 0:02:07.1]} 20... d5 {[%clk 0:01:56.1]} 21.
cxd5 {[%clk 0:01:56.5]} 21... Rxd5 {[%clk 0:01:55]} 22. Qe2 {[%clk 0:01:56.5]}
22... Rfd8 {[%clk 0:01:52.2]} 23. Rxd5 {[%clk 0:01:54]} 23... Rxd5 {[%clk
0:01:52.1]} 24. Rd1 {[%clk 0:01:53.3]} 24... Qd8 {[%clk 0:01:46.2]} 25. Rxd5
{[%clk 0:01:44.8]} 25... Qxd5+ {[%clk 0:01:45.7]} 26. Qf3 {[%clk 0:01:45.4]}
26... Ne4 {[%clk 0:01:38.5]} 27. Nc2 {[%clk 0:01:38.2]} 27... Qd3 {[%clk
0:01:18]} 28. Nd4 {[%clk 0:01:30.3]} 28... Nd2 {[%clk 0:00:54.1]} 29. Qe2 {[%clk
0:01:02.6]} 29... Qxe2 {[%clk 0:00:44]} 30. Nxe2 {[%clk 0:01:02.7]} 30... e5
{[%clk 0:00:36.6]} 31. f4 {[%clk 0:00:50.8]} 31... Kf7 {[%clk 0:00:35.6]} 32.
fxe5 {[%clk 0:00:45.9]} 32... Ke6 {[%clk 0:00:34]} 33. Nd4+ {[%clk 0:00:46.6]}
33... Kxe5 {[%clk 0:00:33.6]} 34. Nc6+ {[%clk 0:00:47.4]} 34... Ke4 {[%clk
0:00:28.9]} 35. Nxa7 {[%clk 0:00:48.3]} 35... Kxe3 {[%clk 0:00:24.9]} 36. Nc8
{[%clk 0:00:47.9]} 36... g5 {[%clk 0:00:22.6]} 37. Nxb6 {[%clk 0:00:46.2]} 37...
Kd4 {[%clk 0:00:11.6]} 38. Kf2 {[%clk 0:00:31.8]} 38... Ne4+ {[%clk 0:00:09.9]}
39. Kf3 {[%clk 0:00:29.3]} 39... Nc3 {[%clk 0:00:09.4]} 40. a4 {[%clk
0:00:26.6]} 40... Kc5 {[%clk 0:00:08.6]} 41. Nc4 {[%clk 0:00:21.1]} 41... Kb4
{[%clk 0:00:06.5]} 42. Nd6 {[%clk 0:00:14]} 42... Kxb3 {[%clk 0:00:04.9]} 43. a5
{[%clk 0:00:14.6]} 1-0

[Event "Late-Titled-Tuesday-Blitz-September-05-2023"]
[Site "Chess.com"]
[Date "2023.09.05"]
[Round "11"]
[White "CFalcons8"]
[Black "copanchess"]
[Result "1-0"]
[WhiteElo "2326"]
[BlackElo "2173"]
[TimeControl "180+1"]
[EndTime "16:05:31 PDT"]
[Termination "CFalcons8 won by checkmate"]

1. e4 {[%clk 0:03:00.9]} 1... e5 {[%clk 0:02:59]} 2. d4 {[%clk 0:03:01.3]} 2...
exd4 {[%clk 0:02:58.3]} 3. Qxd4 {[%clk 0:03:02.2]} 3... Nc6 {[%clk 0:02:57.5]}
4. Qc4 {[%clk 0:03:02.4]} 4... Nf6 {[%clk 0:02:49.9]} 5. Nc3 {[%clk 0:03:00.9]}
5... Bb4 {[%clk 0:02:49]} 6. Bd2 {[%clk 0:02:59.4]} 6... O-O {[%clk 0:02:47.6]}
7. a3 {[%clk 0:02:57.8]} 7... d5 {[%clk 0:02:14.8]} 8. exd5 {[%clk 0:02:50.8]}
8... Re8+ {[%clk 0:02:03.4]} 9. Be2 {[%clk 0:02:48]} 9... Bxc3 {[%clk 0:02:03]}
10. Bxc3 {[%clk 0:02:46.9]} 10... Nxd5 {[%clk 0:02:01.2]} 11. O-O-O {[%clk
0:02:38]} 11... Be6 {[%clk 0:01:46]} 12. Bf3 {[%clk 0:02:28.6]} 12... Nxc3
{[%clk 0:00:37.8]} 13. Qxc3 {[%clk 0:02:29.5]} 13... Qg5+ {[%clk 0:00:34.2]} 14.
Kb1 {[%clk 0:02:23.6]} 14... Ne5 {[%clk 0:00:31.6]} 15. h4 {[%clk 0:02:05.9]}
15... Qf5 {[%clk 0:00:28.9]} 16. Bxb7 {[%clk 0:01:53.5]} 16... Rab8 {[%clk
0:00:26.6]} 17. Bd5 {[%clk 0:01:36.4]} 17... Red8 {[%clk 0:00:17.7]} 18. Nf3
{[%clk 0:01:17]} 18... Bxd5 {[%clk 0:00:10.7]} 19. Qxe5 {[%clk 0:01:11.6]} 19...
Qxe5 {[%clk 0:00:07.2]} 20. Nxe5 {[%clk 0:01:12.5]} 20... Bxg2 {[%clk
0:00:06.9]} 21. Rhg1 {[%clk 0:01:09]} 21... Rxd1+ {[%clk 0:00:06.9]} 22. Rxd1
{[%clk 0:01:09.9]} 22... Be4 {[%clk 0:00:06.4]} 23. Rd7 {[%clk 0:01:05.2]} 23...
f6 {[%clk 0:00:06]} 24. Nc4 {[%clk 0:00:58.7]} 24... c5 {[%clk 0:00:05.5]} 25.
Rxa7 {[%clk 0:00:56.7]} 25... Rd8 {[%clk 0:00:05.9]} 26. Kc1 {[%clk 0:00:51.6]}
26... Bf5 {[%clk 0:00:04.9]} 27. Ne3 {[%clk 0:00:49.6]} 27... Be4 {[%clk
0:00:04.5]} 28. b4 {[%clk 0:00:47.7]} 28... g5 {[%clk 0:00:04.2]} 29. hxg5
{[%clk 0:00:45.8]} 29... cxb4 {[%clk 0:00:03.7]} 30. gxf6 {[%clk 0:00:37.6]}
30... bxa3 {[%clk 0:00:03.4]} 31. Rxa3 {[%clk 0:00:38.1]} 31... Kf7 {[%clk
0:00:03]} 32. Ra6 {[%clk 0:00:36.9]} 32... Rc8 {[%clk 0:00:02.6]} 33. Kd2 {[%clk
0:00:32.5]} 33... h5 {[%clk 0:00:02.8]} 34. c4 {[%clk 0:00:24.7]} 34... h4
{[%clk 0:00:02.9]} 35. Ng4 {[%clk 0:00:19.9]} 35... h3 {[%clk 0:00:02.6]} 36.
Ne5+ {[%clk 0:00:16.2]} 36... Kf8 {[%clk 0:00:02.9]} 37. f3 {[%clk 0:00:11.9]}
37... Rd8+ {[%clk 0:00:03.8]} 38. Ke3 {[%clk 0:00:11.1]} 38... Bf5 {[%clk
0:00:04]} 39. Kf4 {[%clk 0:00:10.9]} 39... Bc8 {[%clk 0:00:03.5]} 40. Ra1 {[%clk
0:00:09.5]} 40... Rd2 {[%clk 0:00:03.1]} 41. Kg5 {[%clk 0:00:08.6]} 41... h2
{[%clk 0:00:04]} 42. Ng6+ {[%clk 0:00:07.7]} 42... Kg8 {[%clk 0:00:03.6]} 43.
Ne7+ {[%clk 0:00:06.4]} 43... Kf7 {[%clk 0:00:03.7]} 44. Nxc8 {[%clk 0:00:07.3]}
44... Rg2+ {[%clk 0:00:03.5]} 45. Kf5 {[%clk 0:00:07.9]} 45... Rg1 {[%clk
0:00:04.2]} 46. Nd6+ {[%clk 0:00:08]} 46... Kf8 {[%clk 0:00:03.2]} 47. Ra8#
{[%clk 0:00:08.4]} 1-0

[Event "Late-Titled-Tuesday-Blitz-September-05-2023"]
[Site "Chess.com"]
[Date "2023.09.05"]
[Round "11"]
[White "Rinqed222"]
[Black "Kostukov_Alex"]
[Result "0-1"]
[WhiteElo "2227"]
[BlackElo "2384"]
[TimeControl "180+1"]
[EndTime "16:05:33 PDT"]
[Termination "Kostukov_Alex won by checkmate"]

1. e4 {[%clk 0:03:00.9]} 1... c5 {[%clk 0:02:59.1]} 2. Nc3 {[%clk 0:03:00.8]}
2... g6 {[%clk 0:02:59.4]} 3. f4 {[%clk 0:02:56]} 3... Bg7 {[%clk 0:02:59.5]} 4.
Nf3 {[%clk 0:02:55.4]} 4... Nc6 {[%clk 0:02:59.7]} 5. Bb5 {[%clk 0:02:54.9]}
5... Nd4 {[%clk 0:02:59.3]} 6. O-O {[%clk 0:02:55.4]} 6... e6 {[%clk 0:02:51.9]}
7. e5 {[%clk 0:02:53.8]} 7... a6 {[%clk 0:02:51.9]} 8. Bd3 {[%clk 0:02:50.4]}
8... d5 {[%clk 0:02:51.2]} 9. Nxd4 {[%clk 0:02:49]} 9... cxd4 {[%clk 0:02:51.6]}
10. Ne2 {[%clk 0:02:49.6]} 10... f6 {[%clk 0:02:42.1]} 11. exf6 {[%clk
0:02:45.7]} 11... Nxf6 {[%clk 0:02:39.5]} 12. Kh1 {[%clk 0:02:44]} 12... Ne4
{[%clk 0:02:35.6]} 13. c3 {[%clk 0:02:40.7]} 13... Nc5 {[%clk 0:02:29.6]} 14.
Bb1 {[%clk 0:02:23.2]} 14... d3 {[%clk 0:02:29.2]} 15. Ng3 {[%clk 0:02:16.8]}
15... a5 {[%clk 0:02:18]} 16. Qf3 {[%clk 0:02:11.8]} 16... b6 {[%clk 0:02:14.6]}
17. Re1 {[%clk 0:02:08.3]} 17... O-O {[%clk 0:02:12.9]} 18. Bxd3 {[%clk
0:01:57.8]} 18... e5 {[%clk 0:01:59.8]} 19. Bc2 {[%clk 0:01:32.3]} 19... e4
{[%clk 0:01:59.8]} 20. Qf2 {[%clk 0:01:22.9]} 20... Qd6 {[%clk 0:01:49.7]} 21.
Ne2 {[%clk 0:01:05.8]} 21... Ba6 {[%clk 0:01:39.6]} 22. g3 {[%clk 0:01:04.6]}
22... g5 {[%clk 0:01:26.3]} 23. f5 {[%clk 0:00:58.2]} 23... Bd3 {[%clk
0:01:21.4]} 24. Bd1 {[%clk 0:00:47.8]} 24... h5 {[%clk 0:01:09.1]} 25. Nd4
{[%clk 0:00:46.6]} 25... g4 {[%clk 0:01:07.5]} 26. b4 {[%clk 0:00:44]} 26...
axb4 {[%clk 0:00:59.9]} 27. cxb4 {[%clk 0:00:44.3]} 27... Nd7 {[%clk 0:00:52.6]}
28. Bb2 {[%clk 0:00:42.8]} 28... Qxb4 {[%clk 0:00:45.3]} 29. Bc3 {[%clk
0:00:43.5]} 29... Qc5 {[%clk 0:00:44]} 30. Qe3 {[%clk 0:00:30.7]} 30... Ne5
{[%clk 0:00:37.9]} 31. Ne6 {[%clk 0:00:27.1]} 31... Qxe3 {[%clk 0:00:36.6]} 32.
Rxe3 {[%clk 0:00:26.8]} 32... Rxf5 {[%clk 0:00:34.4]} 33. Bb3 {[%clk 0:00:23.5]}
33... Bh6 {[%clk 0:00:30.9]} 34. Bxd5 {[%clk 0:00:20.5]} 34... Bxe3 {[%clk
0:00:29.2]} 35. dxe3 {[%clk 0:00:19.8]} 35... Rc8 {[%clk 0:00:26.1]} 36. Nd4+
{[%clk 0:00:17.6]} 36... Rf7 {[%clk 0:00:24.6]} 37. Bxf7+ {[%clk 0:00:15.8]}
37... Kxf7 {[%clk 0:00:24.6]} 38. Bb2 {[%clk 0:00:13.1]} 38... Nc4 {[%clk
0:00:24]} 39. Bc3 {[%clk 0:00:12.7]} 39... Nxe3 {[%clk 0:00:23.6]} 40. Bb2
{[%clk 0:00:11.4]} 40... Nc2 {[%clk 0:00:23]} 41. Nxc2 {[%clk 0:00:10.3]} 41...
Rxc2 {[%clk 0:00:23]} 42. Bd4 {[%clk 0:00:10.7]} 42... Be2 {[%clk 0:00:19.6]}
43. Kg1 {[%clk 0:00:09.8]} 43... Bf3 {[%clk 0:00:19.3]} 44. Bf2 {[%clk
0:00:09.5]} 44... Ke6 {[%clk 0:00:19.1]} 45. Rb1 {[%clk 0:00:07.6]} 45... Rxa2
{[%clk 0:00:18.9]} 46. Rxb6+ {[%clk 0:00:07.8]} 46... Kd5 {[%clk 0:00:19.4]} 47.
Rb5+ {[%clk 0:00:06.8]} 47... Kc4 {[%clk 0:00:19.7]} 48. Rc5+ {[%clk 0:00:07.1]}
48... Kd3 {[%clk 0:00:20]} 49. Rc1 {[%clk 0:00:06.7]} 49... e3 {[%clk
0:00:16.4]} 50. Be1 {[%clk 0:00:06.7]} 50... Rg2+ {[%clk 0:00:14.7]} 51. Kf1
{[%clk 0:00:06.6]} 51... e2# {[%clk 0:00:14.2]} 0-1